Cogmind - Beta 16.1 @@@ ROGUE MODE // 2026.06.22 @ 22:24:35 Player: Lolterzard Result: Destroyed by D-53 Grenadier with Mini Grenade Launcher Performance ------------- Evolutions (0) 0 Regions Visited (2) 400 Robots Destroyed (31) 155 Value Destroyed (736) 736 Prototype IDs (2) 40 Alien Tech Used (0) 0 Bonus (0) 0 TOTAL SCORE: 1331 Bonus ------- None Cogmind --------- Core Integrity 0/250 Matter 219/300 Energy 240/250 System Corruption 2% Temperature Cool (0) Movement Rolling (130) Ox2 Location -10/Mines Parts ------- > --- POWER (1) -------- Ion Engine > --- PROPULSION (2) --- Compact Wheel Compact Wheel > --- UTILITY (2) ------ Improved Heat Sink Huge Storage Unit > --- WEAPON (2) ------- Medium Laser Grenade Launcher > --- INVENTORY (25) --- Ion Engine Ion Engine Light Treads Light Treads Wheel Wheel Small Storage Unit Large Storage Unit Hacking Suite Hacking Suite Tractor Beam Tractor Beam EM Pulse Gun Medium Laser Grenade Launcher Grenade Launcher Grenade Launcher Datajack Datajack Peak State ------------ > --- POWER ------------ Ion Engine > --- PROPULSION ------- Compact Wheel Compact Wheel > --- UTILITY ---------- Improved Heat Sink Huge Storage Unit > --- WEAPON ----------- Medium Laser Medium Laser > --- INVENTORY -------- Ion Engine Ion Engine Light Treads Light Treads Wheel Wheel Small Storage Unit Large Storage Unit Hacking Suite Hacking Suite Tractor Beam Tractor Beam EM Pulse Gun Grenade Launcher Grenade Launcher Grenade Launcher Grenade Launcher Datajack [Rating: 11] Favorites ----------- Power Ion Engine Engine Ion Engine Propulsion Light Treads Treads Light Treads Wheel Compact Wheel Utility Improved Heat Sink Device Improved Heat Sink Storage Large Storage Unit Weapon Medium Laser Energy Gun Medium Laser Ballistic Gun Light Assault Rifle Launcher Grenade Launcher Build | -11 -10 -10 ------- Run | Yrd Mat Min Slots Evolved . | . . . Power . | . . . Propulsion . | . . . Utility . | . . . Weapon . | . . . Parts Attached 17 | 7 10 . Power 2 | 1 1 . Engine 2 | 1 1 . Core . | . . . Reactor . | . . . Propulsion 5 | 2 3 . Treads 3 | 2 1 . Leg . | . . . Wheel 2 | . 2 . Hover . | . . . Flight . | . . . Utility 5 | 2 3 . Device 2 | 1 1 . Storage 3 | 1 2 . Processor . | . . . Hackware . | . . . Protection . | . . . Artifact . | . . . Weapon 5 | 2 3 . Energy Gun 2 | 2 . . Energy Cannon . | . . . Ballistic Gun 2 | . 2 . Ballistic Cannon . | . . . Launcher 1 | . 1 . Special Weapon . | . . . Impact Weapon . | . . . Slashing Weapon . | . . . Piercing Weapon . | . . . Special Melee Weapon . | . . . Unidentified Prototypes . | . . . Parts Lost 5 | . 5 . Power 1 | . 1 . Propulsion 1 | . 1 . Utility 1 | . 1 . Weapon 2 | . 2 . Highest Loss Streak 2 | . 2 . To Critical Strikes . | . . . Average Backups 14 | 3 13 19 Power 1 | . 1 2 Propulsion 3 | 1 3 4 Utility 4 | . 3 6 Weapon 4 | . 3 5 Tool/Special . | . . . Unused Backups 15 | . 1 14 Power 3 | . 1 2 Propulsion 2 | . . 2 Utility 4 | . . 4 Weapon 4 | . . 4 Tool/Special 2 | . . 2 Average Slot Usage (%) 98 | . 97 100 Engine 13 | . 13 14 Treads 14 | . 20 . Wheel 13 | . 6 28 Device 13 | . 13 14 Storage 14 | . 14 14 Energy Gun 15 | . 14 16 Ballistic Gun 8 | . 12 . Launcher 3 | . . 11 Peak Build Rating 11 | 7 11 11 Average Rating 9 | 5 9 11 On Entrance 6 | . 7 11 Avg Prop Armor Cover (%) 24 | 24 . . Naked Turns . | . . . Heaviest Build 91 | 13 90 91 Greatest Support 40 | 40 40 32 Greatest Overweight (x) 3 | 3 2 2 Average Overweight (x) 1 | . . 2 Largest Inventory Capacity 25 | 8 25 25 Average Capacity 18 | 7 16 25 Most Carried 19 | 5 19 19 Average Carried 14 | 3 13 19 Final Capacity 25 | 8 25 25 Final Carried 19 | 5 19 19 Class Distribution -------------------- 95% | Mutant 4% | Scavenger-Mutant Dominant Class ---------------- Mutant | -10/Materials Mutant | -10/Mines Resources | -11 -10 -10 ----------- Run | Yrd Mat Min Matter Collected 499 | 270 225 4 Remotely . | . . . Salvage Created 880 | 97 757 26 Parts 65 | 7 54 4 Haulers Intercepted 1 | . 1 . Recyclers Shooed 1 | . 1 . Parts Field Recycled . | . . . Retrieved Matter . | . . . Parts Self-Destructed . | . . . Prevented . | . . . Parts Restored . | . . . Kills | -11 -10 -10 ------- Run | Yrd Mat Min Combat Hostiles Destroyed 22 | . 18 4 Guns 16 | . 15 1 AOE 6 | . 3 3 Classes Destroyed 9 | 2 6 1 Worker 1 | . 1 . Tunneler 2 | 1 1 . Hauler 1 | . 1 . Recycler 1 | 1 . . Operator 2 | . 2 . Watcher 2 | . 2 . Swarmer 6 | . 3 3 Grunt 15 | . 15 . Demolisher 1 | . . 1 Best Kill Streak 5 | 2 5 3 Combat Bots Only 3 | . 3 3 Max Kills in Single Turn 3 | 1 3 3 Gunslinging . | . . . Exploded 2 | . 2 2 Melee . | . . . Uniques/NPCs Destroyed . | . . . Combat | -11 -10 -10 -------- Run | Yrd Mat Min Hostile Shots Fired 103 | . 101 2 Missed 28 | . 28 . Hits 75 | . 73 2 Projectile 75 | . 73 2 AOE 1 | . . 1 Critical Strikes 1 | . 1 . Damage Taken 927 | . 870 57 Core 287 | . 242 45 Absorbed by Shields . | . . . Regen/Repaired (Parts) 117 | . 117 . Core Remaining (%) 100 | 100 . . Volleys Fired 98 | 4 89 5 Largest 2 | 2 2 2 Hottest 100 | 100 100 80 Shots Fired 193 | 8 175 10 Gun 186 | 8 173 5 Cannon . | . . . Launcher 7 | . 2 5 Special . | . . . Kinetic 102 | . 102 . Thermal 84 | 8 71 5 Explosive 7 | . 2 5 Electromagnetic . | . . . Robot Hit Streak 12 | 2 12 4 Robot Miss Streak 3 | 1 3 . Penetration Max . | . . . Secondary Targets . | . . . Shots Hit Robots 124 | 4 119 1 Core Hits 59 | 3 51 5 Critical Kills . | . . . Critical Parts Destroyed . | . . . Critical Strikes 3 | 1 2 . Burn 3 | 1 2 . Melee Attacks . | . . . Impact . | . . . Slashing . | . . . Piercing . | . . . Sneak Attacks . | . . . Combat Hostiles . | . . . Follow-up Attacks . | . . . Damage Inflicted 1699 | 51 1473 175 Guns 1269 | 51 1194 24 Cannons . | . . . Explosions 429 | . 278 151 Melee . | . . . Ramming 1 | . 1 . Kinetic 522 | . 522 . Thermal 747 | 51 672 24 Explosive 429 | . 278 151 Electromagnetic . | . . . Impact . | . . . Slashing . | . . . Piercing . | . . . Highest Corruption 2 | . 2 2 Average Corruption 1 | . 1 2 Corruption Purged . | . . . Corruption Blocked . | . . . Effects 8 | . 1 7 Message Errors 1 | . 1 . Matter Fused 4 | . . 4 Energy Discharges 1 | . . 1 Data Loss (minor) 1 | . . 1 Data Loss (major) 1 | . . 1 Overload Shots . | . . . Overflow Damage 12 | . 12 . Projectiles . | . . . Explosions 12 | . 12 . Melee . | . . . Knockbacks . | . . . Impact . | . . . Kinetic . | . . . Secondary . | . . . Self-Inflicted Damage 8 | . 6 2 Shots 2 | . 1 1 Rammed 1 | . 1 . Targets Rammed 1 | . 1 . Kicked . | . . . Crushed . | . . . Highest Temperature 117 | 117 39 . Average Temperature 19 | 49 14 . Received Heat Transfer 477 | . 477 . Siege Activations . | . . . Martial Activations . | . . . Shielding Activations . | . . . Robots Disrupted . | . . . Combat Hostiles . | . . . Robots Corrupted . | . . . Combat Hostiles . | . . . Parts Fried . | . . . Impact Corruptions . | . . . Robots Melted . | . . . Combat Hostiles . | . . . Parts Melted 7 | . 7 . Heat Transferred 2442 | 222 2146 74 Parts Sabotaged . | . . . Parts Stolen . | . . . Parts Stripped . | . . . Power Chain Reactions . | . . . Alert | -11 -10 -10 ------- Run | Yrd Mat Min Maximum Alert Level . | . . . Low Security (%) 100 | 100 100 100 Level 1 . | . . . Level 2 . | . . . Level 3 . | . . . Level 4 . | . . . Level 5 . | . . . High Security . | . . . Max Security . | . . . Peak Influence 106 | 10 106 80 Initial 29 | . . 29 Average 28 | . 38 14 Influence Increases 676 | 10 526 140 Destroy 0b10 Robot/C 440 | . 360 80 Destroy 0b10 Robot/NC 45 | 10 35 . Destroy Leader 96 | . 76 20 Successful Hack 29 | . 29 . Destroy Structure 51 | . 11 40 Lose Combat Pursuer 15 | . 15 . Influence Decreases 637 | 10 450 177 Entered New Map 47 | . . 47 Time Decay 540 | 10 400 130 Lost Part 50 | . 50 . Squads Dispatched 4 | . 4 . Investigation 3 | . 3 . Extermination . | . . . Reinforcement 1 | . 1 . Assault . | . . . Garrison . | . . . Intercept . | . . . Searches Triggered . | . . . Construction Impeded . | . . . Haulers Reinforced . | . . . Active Scanning Responses . | . . . Cargo Convoy Interrupts . | . . . Stealth | -11 -10 -10 --------- Run | Yrd Mat Min Distress Signals . | . . . Communications Jammed . | . . . Distress Signals . | . . . Times Spotted 33 | . 29 4 Peak Tracking Total 3 | . 3 3 Tactical Retreats 1 | . 1 . Traps | -11 -10 -10 ------- Run | Yrd Mat Min Traps Triggered 2 | . 2 . Indirectly . | . . . Trap Hack Attempts . | . . . Triggered . | . . . Disarmed . | . . . Reprogrammed . | . . . Reused . | . . . Traps Extracted . | . . . Installed . | . . . Triggered . | . . . Machines | -11 -10 -10 ---------- Run | Yrd Mat Min Machines Disabled . | . . . Max in Single Turn . | . . . Machines Repaired . | . . . Machines Dismantled . | . . . Machines Sabotaged . | . . . Overloaded Fab Kills . | . . . Hacking | -11 -10 -10 --------- Run | Yrd Mat Min Machines Accessed 4 | . 4 . Terminals 3 | . 3 . Fabricators . | . . . Repair Stations 1 | . 1 . Recycling Units . | . . . Scanalyzers . | . . . Garrison Access . | . . . Total Hacks 11 | . 11 . Successful 3 | . 3 . Failed 8 | . 8 . Catastrophic 3 | . 3 . Database Lockouts . | . . . Manual 1 | . 1 . Terminals 8 | . 8 . Fabricators . | . . . Repair Stations 3 | . 3 . Recycling Units . | . . . Scanalyzers . | . . . Garrison Access . | . . . Terminal Hacks 1 | . 1 . Prototype ID Bank 1 | . 1 . Fabricator Hacks . | . . . Repair Station Hacks 2 | . 2 . Scan Component 1 | . 1 . Repair 1 | . 1 . Recycling Unit Hacks . | . . . Scanalyzer . | . . . Garrison Access Hacks . | . . . Unauthorized Hacks . | . . . Terminals . | . . . Fabricators . | . . . Repair Stations . | . . . Recycling Units . | . . . Scanalyzers . | . . . Garrison Access . | . . . Data Cores Recovered 1 | . 1 . Used . | . . . Hacking Detections 3 | . 3 . Full Trace Events 3 | . 3 . Feedback Events . | . . . Feedback Blocked . | . . . Robot Schematics Acquired . | . . . Robots Built . | . . . Authchips . | . . . Time . | . . . Total Robot Build Rating . | . . . Part Schematics Acquired . | . . . Parts Built . | . . . Authchips . | . . . Time . | . . . Total Part Build Rating . | . . . Part Studies Acquired . | . . . Parts Repaired 1 | . 1 . Time 13 | . 13 . Parts Recycled . | . . . Recycled Matter . | . . . Retrieved Matter . | . . . Retrieved Components . | . . . Parts Scanalyzed . | . . . Part Schematics Acquired . | . . . Parts Damaged . | . . . Bothacking | -11 -10 -10 ------------ Run | Yrd Mat Min Used RIF Installer . | . . . Robots Hacked . | . . . Non-combat . | . . . Combat . | . . . Robot Hacks Applied . | . . . Relay Couplers Released . | . . . Fabnet Peak Effective % . | . . . Robots Rewired . | . . . Allies Hacked . | . . . Hacks Repelled . | . . . Allies | -11 -10 -10 -------- Run | Yrd Mat Min Total Allies . | . . . Largest Group . | . . . Highest-Rated Group . | . . . Highest-Rated Ally . | . . . Total Orders . | . . . Ally Attacks . | . . . Total Damage . | . . . Kills . | . . . Allies Corrupted . | . . . Allies Melted . | . . . Intel | -11 -10 -10 ------- Run | Yrd Mat Min Active Infowar (turns) 240 | 22 218 . Seismic 240 | 22 218 . Robot Analysis Total . | . . . Derelict Logs Recovered 1 | . . 1 Drone Launches . | . . . Drone Recoveries . | . . . Exploration | -11 -10 -10 ------------- Run | Yrd Mat Min Turns Passed 1851 | 117 1164 570 Spaces Moved 899 | 60 530 309 Core 27 | 27 . . Treads 406 | 33 373 . Legs . | . . . Wheels 466 | . 157 309 Hover . | . . . Flight . | . . . Fastest Speed 50 | 50 130 130 Average Speed 144 | 151 152 130 Slowest Speed 240 | 200 240 130 Overloaded Moves . | . . . Propulsion Burnouts . | . . . Robots Hopped . | . . . Potential Cave-ins . | . . . Cave-ins Triggered . | . . . Exploration Rate (%) 44 | 4 84 44 Regions Visited 2 Branch Regions 1 Pre-discovered Areas . | . . . Known Exits Taken . | . . . Unknown Exits Taken 2 | 1 1 . Scrap Searched . | . . . Spaces Dug . | . . . Terrain Destroyed 53 | . 12 41 Melee . | . . . Projectile . | . . . AOE 53 | . 12 41 Terrain Rammed . | . . . Walls Destroyed . | . . . Machines Disabled . | . . . Actions | -11 -10 -10 --------- Run | Yrd Mat Min Total 1269 | 75 725 469 Wait 231 | . 77 154 Move 897 | 59 529 309 Hop . | . . . Pick Up 21 | 5 16 . Fast Attach 10 | 7 3 . Attach 2 | . 2 . Detach . | . . . Swap 8 | . 7 1 Drop 1 | . 1 . Fire 98 | 4 89 5 Melee . | . . . Ram . | . . . Kick . | . . . Crush 1 | . 1 . Escape Stasis . | . . . Rewire . | . . . Trap . | . . . Miscellaneous . | . . . Route ------- -11/Scrapyard -10/Materials (discovered 3 exits: [*Mat x2] / [*Min]) -10/Mines History --------- Turn | Location | Event 7 | -11/Scrapyard | Discovered new exit (range 15) 118 | -11/Scrapyard | Entered Materials 307 | -10/Materials | Build established: Mutant 366 | -10/Materials | Discovered new exit (range 15) 517 | -10/Materials | Discovered new exit (range 11) 790 | -10/Materials | Core integrity fell below 50% 898 | -10/Materials | Discovered new exit (range 16) 1049 | -10/Materials | Repaired Lgt. Treads 1080 | -10/Materials | Core integrity fell below 20% 1282 | -10/Materials | Entered Mines 1341 | -10/Mines | Assembled infested the area 1518 | -10/Mines | Learned Materials emergency access door positions 1852 | -10/Mines | Destroyed by D-53 Grenadier with Mini Grenade Launcher Last Messages --------------- 01408_ The unstable cave ceiling collapses. 01432_ System corrupted: Energy discharge (-67). 01456_ System corrupted: Matter fused (-7). 01474_ System corrupted: Matter fused (-5). 01507_ T-07 Excavator is excavating. 01518_ Acquired derelict log, extracted data. Data stored: Materials emergency access points. 01519_ T-07 Excavator is excavating. 01548_ S-10 Pest destroyed. 01549_ T-07 Excavator is excavating. 01556_ System corrupted: Substantial component data lost. 01562_ Acquired 1 matter. 01565_ Acquired 3 matter. 01626_ T-07 Excavator is excavating. 01654_ System corrupted: Component data lost. 01655_ T-07 Excavator is excavating. 01802_ System corrupted: Matter fused (-5). 01820_ K-01 Serf collects debris. 01852_ D-53 Grenadier destroyed. 01852_ Destroyed Welding Torch. Map ----- +----------------------------------------------------+ | | | | | | | | | | | ????????????????????????????????????????????? | | ????????????????????????????????????????????? | | ?????????????####???????????????????????????? | | ???????????## ##??????????????????????????? | | ??????????## #?????????????????####?????? | | ??????##### #????????????????# ##????? | | ?????## #????????????????# ###??? | | ?????# ####??????????????## ##?? | | ?????# ##????????????????## """ #?? | | ?????# #????????????????## """ #?? | | ?????# ### ##????????????????# """ #??? | | ?????# #?# #?????############# #???? | | ###### #?# #?????# #????? | | #?# #?????# ############ ##????? | | ########?# #?????# #?????????### ##?????? | | ?????????# #?????# #???????### # t##??????? | | ?????????# #?????# #???????# # ##??????? | | ?????????# #?????# #???????# t #??????? | | ?????????# #?????# #???????# ## ##??????? | | ?????????# ####### ######## ##??????? | | ?????????# r @ # #?####?? | | ?????????################## # ### ##? | | ???????????????????????????## ud ## #? | | ????????????????????????????# #? | | ????????????????????????????## ## #? | | ?????????????????????????????# ##### ##? | | ?????????????????????????????# ##??## #?? | | ?????????????????????????????# #??## #?? | | ???#######??????????########## #??# #?? | | ??## ##?????????# #??# #?? | | ??# ##????????# #??## #?? | | ?## ##???????# ##########???# ##?? | | ## #???????# #????????????# #??? | | ######### #???????????? ##??? | | #???????????### #???? | | ############?????????????# #???? | | ## ##????????????????????????# #???? | | ######?????????????????????????# ???? | | ##?????????????????????????????####???? | | ##???????????????????????????????????? | | # #???????????????????????????????????? | | ## #???????????????????????????????????? | | ?# ##???????????????????????????????????? | | ?## ###????????????????????????????????????? | | ??####??????????????????????????????????????? | +----------------------------------------------------+ Best States ------------- Heat Dissipation 39 Energy Generation 10 Energy Capacity 250 Matter Stores 300 Matter Capacity 300 Sight Range 16 Terrain Scan Density 10 Evasion (%) 50 Recoil Reduction 2 Item Schematics ----------------- None Robot Schematics ------------------ None Fabricated ------------ Nothing Repaired ---------- Lgt. Treads | 16% | -10/Materials Studied --------- None Alien Tech Used ----------------- None Achievements -------------- None Challenges ------------ None Game ------ Seed HellfireAntimatterProcessor Manual? 0 Play Time 00:09:17 Cumulative 45.5 hours Start 2026.06.22 @ 22:16:54 End 2026.06.22 @ 22:24:35 Sessions 1 Manual Loads 0 Difficulty Rogue Special Mode None Game No. 88 Rogue 88 Adventurer 0 Explorer 0 Win Type - Total 0 Types 0/0/0/0/0/0/0/0/0/0 Lore% 23 Gallery% 24 Achievement% 21 Wizard Run 0 Options --------- Layout 0 ASCII 0 Keyboard 0 Movement Mouse Keybinds 0 Fullscreen 2 Font 24/Smallcaps Map View 76x50 Zoom Use 0% Tactical HUD 1 Map Filters NONE Filters NONE Steam 1 RUN: 0a949aa6-7088-4b73-9188-5d1acc28b5c7